bitfinex/quotes_BTCUSD_20241107
["timestamp","ask_amount","ask_price","bid_price","bid_amount"]
[1731013561492,0.023,76441.0,76440.0,0.03589029]
[1731013561715,0.1867072,76441.0,76440.0,0.03589029]
[1731013561931,0.1867072,76441.0,76440.0,0.001668]
[1731013562344,0.1917072,76441.0,76440.0,0.001668]
[1731013563598,0.1937072,76441.0,76440.0,0.001668]
[1731013563807,0.20579966,76441.0,76440.0,0.001668]
[1731013564037,0.24452259,76441.0,76440.0,0.001668]
[1731013564285,0.26388406,76441.0,76440.0,0.001668]
[1731013564524,0.96246077,76441.0,76440.0,0.001668]
[1731013564727,0.96246077,76441.0,76425.0,0.1]
[1731013564728,0.023,76437.0,76425.0,0.1]
[1731013564948,0.023,76435.0,76434.0,0.19645979]
[1731013565177,0.19879966,76435.0,76426.0,0.00200909]
[1731013565395,0.023,76432.0,76425.0,0.1]
[1731013565670,0.023,76430.0,76425.0,0.1]
[1731013565876,0.023,76428.0,76425.0,0.1]
[1731013566110,0.13224102,76427.0,76425.0,0.1]
[1731013566339,0.08585112,76426.0,76425.0,0.1]
[1731013566569,0.21809214,76426.0,76425.0,0.1]
[1731013566800,0.21809214,76426.0,76419.0,0.001668]
[1731013567019,0.023,76424.0,76422.0,0.0019509]
[1731013567228,0.19874362,76423.0,76422.0,0.0019509]
[1731013568060,0.20074362,76423.0,76422.0,0.0019509]
[1731013568281,0.19874362,76423.0,76422.0,0.0019509]
[1731013568690,0.19874362,76423.0,76419.0,0.001668]
[1731013568691,0.023,76422.0,76419.0,0.001668]
[1731013568911,0.19874362,76422.0,76419.0,0.001668]
[1731013569123,0.19873773,76422.0,76419.0,0.001668]
[1731013570434,0.87996918,76422.0,76419.0,0.001668]
[1731013571726,0.87996918,76422.0,76421.0,0.03644232]
[1731013572686,0.83647247,76422.0,76421.0,0.03644232]
[1731013572895,0.87989152,76422.0,76421.0,0.03644232]
[1731013574158,0.04341905,76422.0,76421.0,0.21404232]
[1731013574395,0.75867732,76439.0,76422.0,0.1]
[1731013574396,0.0192918,76434.0,76422.0,0.1]
[1731013574612,0.01205717,76433.0,76423.0,0.00450165]
[1731013574816,0.01205717,76432.0,76423.0,0.00450165]
[1731013575017,0.01205717,76431.0,76423.0,0.00450165]
[1731013575237,0.13224102,76438.0,76423.0,0.00450165]
[1731013575238,0.01205717,76430.0,76423.0,0.00450165]
[1731013575452,0.13224102,76438.0,76423.0,0.00450165]
[1731013575453,0.01205717,76429.0,76423.0,0.00450165]
[1731013575651,0.01205717,76428.0,76423.0,0.00450165]
[1731013575880,0.01205976,76437.0,76423.0,0.00450165]
[1731013576026,0.023,76427.0,76423.0,0.00188492]
[1731013576230,0.023,76425.0,76423.0,0.00188492]
[1731013576463,0.17565715,76424.0,76421.0,0.03644232]
[1731013576674,0.04341613,76423.0,76421.0,0.03644232]
[1731013576837,0.17565715,76422.0,76421.0,0.03644232]
[1731013577262,0.163597,76422.0,76421.0,0.03644232]
[1731013577623,0.14430101,76422.0,76421.0,0.03644232]
[1731013578360,0.18658894,76422.0,76421.0,0.03644232]
[1731013579506,0.16729966,76422.0,76421.0,0.03644232]
[1731013582218,0.14429966,76422.0,76421.0,0.03644232]
[1731013582425,0.01205864,76422.0,76421.0,0.03644232]
[1731013582607,0.68123145,76429.0,76422.0,0.1]
[1731013582806,0.14430076,76428.0,76422.0,0.1]
[1731013583014,0.01205974,76427.0,76422.0,0.1]
[1731013583217,0.13224102,76428.0,76422.0,0.1]
[1731013583415,0.13224102,76428.0,76421.0,0.03644232]
[1731013583621,0.023,76427.0,76421.0,0.03644232]
[1731013584205,0.023,76425.0,76423.0,0.1]
[1731013584423,0.023,76425.0,76424.0,0.1]
[1731013584652,0.68123145,76427.0,76424.0,0.1]
[1731013584653,0.023,76426.0,76425.0,0.1]
[1731013585195,0.023,76426.0,76425.0,0.10172392]
[1731013585390,0.023,76426.0,76425.0,0.1]
[1731013585880,0.023,76426.0,76421.0,0.03644232]
[1731013586092,0.023,76426.0,76425.0,0.37545979]
[1731013586312,0.68123145,76427.0,76426.0,0.1]
[1731013586540,0.67123145,76427.0,76426.0,0.1]
[1731013586979,0.67123145,76427.0,76426.0,0.10170683]
[1731013587420,0.67118345,76427.0,76426.0,0.10170683]
[1731013587646,0.69418345,76427.0,76426.0,0.10170683]
[1731013587877,0.000834,76443.0,76427.0,0.08]
[1731013587878,0.67118345,76442.0,76427.0,0.08]
[1731013588113,0.000834,76443.0,76430.0,0.005]
[1731013588329,0.000834,76443.0,76434.0,0.08]
[1731013588551,0.000834,76443.0,76435.0,0.0026162]
[1731013588770,0.000834,76443.0,76435.0,0.00169933]
[1731013588989,0.000834,76443.0,76436.0,0.0026162]
[1731013589492,0.000834,76449.0,76439.0,0.005]
[1731013589717,0.000834,76464.0,76451.0,0.1]
[1731013590149,0.000834,76464.0,76452.0,0.00169018]
[1731013590576,0.000834,76464.0,76454.0,0.1]
[1731013590782,0.000834,76466.0,76456.0,0.005]
[1731013590990,0.000834,76466.0,76457.0,0.00261541]
[1731013591219,0.000834,76466.0,76457.0,0.00441658]
[1731013591658,0.000834,76469.0,76457.0,0.00441658]
[1731013591865,0.67118345,76488.0,76467.0,0.005]
[1731013592102,0.00398873,76492.0,76481.0,0.1]
[1731013592511,0.00398873,76492.0,76482.0,0.0018]
[1731013593174,0.023,76491.0,76482.0,0.0018]
[1731013593398,0.023,76487.0,76468.0,0.1]
[1731013593624,0.023,76485.0,76484.0,0.1]
[1731013593838,0.15524102,76485.0,76484.0,0.1]
[1731013594046,0.15524102,76485.0,76484.0,0.10179649]
[1731013594257,0.15524102,76485.0,76484.0,0.1]
[1731013594878,0.15524102,76485.0,76475.0,0.19645979]
[1731013594879,0.15524102,76485.0,76476.0,0.1]
[1731013595317,0.15524102,76485.0,76477.0,0.00169427]
[1731013596714,0.023,76490.0,76477.0,0.00430931]
[1731013597131,0.023,76491.0,76477.0,0.00430931]
[1731013597585,0.023,76491.0,76484.0,0.1]
[1731013597802,0.00398873,76492.0,76484.0,0.1]
[1731013597803,0.00398873,76492.0,76484.0,0.10261473]
[1731013598012,0.67118345,76505.0,76488.0,0.005]
[1731013598215,0.67118345,76505.0,76489.0,0.00261439]
[1731013598646,0.67118345,76505.0,76488.0,0.005]
[1731013598857,0.67118345,76505.0,76490.0,0.00164597]
[1731013599076,0.67118345,76505.0,76489.0,0.00164655]
[1731013599298,0.67118345,76505.0,76491.0,0.00164538]
[1731013599516,0.67118345,76505.0,76490.0,0.00164597]
[1731013599763,0.023,76504.0,76492.0,0.00164525]
[1731013599979,0.023,76504.0,76491.0,0.00154773]
[1731013600194,0.023,76504.0,76488.0,0.005]
[1731013600407,0.023,76504.0,76492.0,0.00154759]
[1731013600609,0.023,76504.0,76486.0,0.005]
[1731013600829,0.023,76504.0,76487.0,0.19645979]
[1731013601082,0.023,76504.0,76488.0,0.1]
[1731013601303,0.023,76504.0,76488.0,0.10146294]
[1731013602569,0.001234,76499.0,76488.0,0.10146294]
[1731013603172,0.15138031,76498.0,76488.0,0.10146294]
[1731013603385,0.023,76497.0,76488.0,0.00146294]
[1731013603839,0.023,76497.0,76489.0,0.00146297]
[1731013604272,0.023,76495.0,76486.0,0.005]
[1731013604494,0.023,76495.0,76490.0,0.00146284]
[1731013604701,0.023,76497.0,76486.0,0.005]
[1731013604862,0.023,76497.0,76491.0,0.00146108]
[1731013605060,0.023,76497.0,76484.0,0.13968239]
[1731013605291,0.023,76495.0,76484.0,0.13468239]
[1731013605493,0.023,76495.0,76485.0,0.00146665]
[1731013605697,0.023,76497.0,76485.0,0.00146665]
[1731013605865,0.001234,76499.0,76485.0,0.00146665]
[1731013605866,0.001234,76499.0,76492.0,0.1]
[1731013606269,0.001234,76499.0,76496.0,0.1]
[1731013606698,0.001234,76499.0,76497.0,0.00144401]
[1731013607519,0.67118345,76520.0,76497.0,0.00144401]
[1731013607520,0.023,76502.0,76497.0,0.00144401]
[1731013607721,0.023,76505.0,76498.0,0.00261406]
[1731013608124,0.023,76505.0,76499.0,0.00143437]
[1731013608337,0.67118345,76527.0,76500.0,0.00261404]
[1731013608571,0.01196053,76526.0,76500.0,0.00261404]
[1731013608804,0.00814993,76517.0,76501.0,0.00143792]
[1731013609016,0.00814993,76516.0,76501.0,0.00143792]
[1731013609217,0.14039095,76515.0,76501.0,0.00143792]
[1731013609711,0.00814993,76514.0,76509.0,0.105]
[1731013609930,0.0119665,76538.0,76509.0,0.24724102]
[1731013610190,0.0119665,76538.0,76510.0,0.3351285]
[1731013610191,0.13224102,76537.0,76510.0,0.3351285]
[1731013610393,0.00814794,76536.0,76511.0,0.1922]
[1731013610599,0.67158345,76539.0,76511.0,0.32444102]
[1731013610600,0.14038896,76535.0,76511.0,0.32444102]
[1731013610809,0.00814794,76534.0,76519.0,0.1]
[1731013610940,0.13224102,76535.0,76519.0,0.1]
[1731013610941,0.00814794,76533.0,76519.0,0.1]
[1731013611141,0.00814794,76532.0,76520.0,0.00172056]
[1731013611372,0.00814794,76531.0,76520.0,0.00172056]
[1731013611576,0.03114794,76530.0,76519.0,0.1]
[1731013611778,0.023,76528.0,76519.0,0.1]
[1731013612121,0.00814794,76527.0,76519.0,0.1]
[1731013612342,0.023,76525.0,76519.0,0.1]
[1731013612534,0.023,76523.0,76519.0,0.1]
[1731013612760,0.023,76521.0,76512.0,0.19645979]
[1731013612962,0.023,76519.0,76512.0,0.19645979]
[1731013613186,0.023,76517.0,76513.0,0.19645979]
[1731013613387,0.023,76515.0,76513.0,0.19645979]
[1731013613592,0.00814794,76514.0,76513.0,0.19645979]
[1731013613810,0.03114794,76514.0,76513.0,0.29645979]
[1731013614015,0.03114794,76514.0,76513.0,0.1]
[1731013614792,0.03114794,76514.0,76507.0,0.00761367]
[1731013615032,0.03114794,76513.0,76507.0,0.005]
[1731013615248,0.000834,76517.0,76507.0,0.005]
[1731013615249,0.023,76511.0,76507.0,0.005]
[1731013615444,0.023,76509.0,76505.0,0.005]
[1731013615835,0.023,76509.0,76504.0,0.0821]
[1731013615836,0.00814794,76508.0,76507.0,0.005]
[1731013616198,0.02736109,76508.0,76507.0,0.005]
[1731013616405,0.023,76509.0,76507.0,0.005]
[1731013616644,0.02737619,76508.0,76505.0,0.005]
[1731013616812,0.02737619,76507.0,76505.0,0.005]
[1731013617015,0.02737619,76506.0,76505.0,0.005]
[1731013617210,0.02737619,76506.0,76504.0,0.07931389]
[1731013617437,0.023,76509.0,76504.0,0.07931389]
[1731013617438,0.04742351,76505.0,76504.0,0.07931389]
[1731013617924,0.02737619,76505.0,76504.0,0.07931389]
[1731013618642,0.04743675,76505.0,76504.0,0.07931389]
[1731013619266,0.03942443,76505.0,76504.0,0.07931389]
[1731013619883,0.02737619,76505.0,76504.0,0.07931389]
[1731013620102,0.03942154,76505.0,76504.0,0.07931389]
[1731013620329,0.03942154,76505.0,76504.0,0.17931389]
[1731013621400,0.03942154,76505.0,76504.0,0.07931389]
[1731013621600,0.05870873,76505.0,76504.0,0.03856943]
[1731013622047,0.023,76509.0,76500.0,0.01]
[1731013622254,0.023,76509.0,76500.0,0.14224102]
[1731013622468,0.023,76509.0,76501.0,0.1]
[1731013622895,0.02009326,76502.0,76501.0,0.1]
[1731013623061,0.02009326,76503.0,76501.0,0.1]
[1731013623262,0.023,76509.0,76501.0,0.1]
[1731013623743,0.01778506,76509.0,76501.0,0.1]
[1731013623920,0.01778506,76509.0,76502.0,0.00261376]
[1731013624122,0.000834,76517.0,76502.0,0.00261376]
[1731013624672,0.000834,76517.0,76504.0,0.1793]
[1731013625064,0.000834,76517.0,76505.0,0.0026137]
[1731013626447,0.000834,76509.0,76505.0,0.0026137]
[1731013627131,0.000834,76517.0,76506.0,0.13224102]
[1731013627327,0.005,76530.0,76510.0,0.005]
[1731013627543,0.19645979,76525.0,76510.0,0.14224102]
[1731013627688,0.005,76530.0,76511.0,0.19645979]
[1731013628983,0.023,76529.0,76511.0,0.19645979]
[1731013629213,0.02012533,76512.0,76511.0,0.19645979]
[1731013629639,0.023,76529.0,76511.0,0.19645979]
[1731013629847,0.02012516,76512.0,76510.0,0.13724102]
[1731013630021,0.02012516,76512.0,76511.0,0.19645979]
[1731013630221,0.00814778,76512.0,76511.0,0.0261]
[1731013630447,0.00814778,76512.0,76510.0,0.13724102]
[1731013630580,0.02827257,76511.0,76510.0,0.13724102]
[1731013630787,0.00814778,76511.0,76510.0,0.13724102]
[1731013631776,0.04812507,76529.0,76510.0,0.13724102]
[1731013631972,0.0982,76522.0,76506.0,0.01]
[1731013632180,0.0982,76522.0,76495.0,0.0475]
[1731013632181,0.023,76520.0,76507.0,0.16712624]
[1731013632394,0.023,76518.0,76507.0,0.16712624]
[1731013632616,0.023,76516.0,76507.0,0.16712624]
[1731013632815,0.02747002,76515.0,76507.0,0.16712624]
[1731013633048,0.04679439,76514.0,76507.0,0.16712624]
[1731013633258,0.04679439,76513.0,76507.0,0.16712624]
[1731013633468,0.04679439,76512.0,76507.0,0.16712624]
[1731013633667,0.04679439,76511.0,76507.0,0.16712624]
[1731013633872,0.03864666,76510.0,76504.0,0.11394469]
[1731013634231,0.05074198,76509.0,76506.0,0.19645979]
[1731013634459,0.023,76516.0,76507.0,0.00261377]
[1731013634460,0.01208142,76508.0,76507.0,0.00261377]
[1731013634680,0.023,76519.0,76507.0,0.00261377]
[1731013634875,0.02014513,76509.0,76507.0,0.00261377]
[1731013635305,0.0384384,76521.0,76507.0,0.00261377]
[1731013635306,0.023,76520.0,76507.0,0.00261377]
[1731013635514,0.023,76517.0,76504.0,0.24618571]
[1731013635712,0.023,76517.0,76505.0,0.19645979]
[1731013635921,0.0384384,76516.0,76505.0,0.19645979]
[1731013636123,0.0384384,76515.0,76506.0,0.00261366]
[1731013636500,0.0384384,76514.0,76506.0,0.00261366]
[1731013636738,0.0384384,76513.0,76506.0,0.00261366]
[1731013636885,0.01229859,76513.0,76506.0,0.00261366]
[1731013637699,0.023,76517.0,76506.0,0.00261366]
[1731013637700,0.08052833,76517.0,76506.0,0.00261366]
[1731013638133,0.08136233,76517.0,76506.0,0.00261366]
[1731013638324,0.05752833,76516.0,76504.0,0.03631269]
[1731013638556,0.018834,76517.0,76506.0,0.19645979]
[1731013638557,0.023,76515.0,76506.0,0.19645979]
[1731013638757,0.05836233,76517.0,76507.0,0.00261375]
[1731013639606,0.000834,76517.0,76507.0,0.00261375]
[1731013640395,0.000834,76517.0,76506.0,0.19645979]
[1731013640655,0.0202302,76511.0,76506.0,0.19645979]
[1731013640873,0.0202302,76512.0,76504.0,0.03631269]
[1731013641092,0.023,76515.0,76504.0,0.03631269]
[1731013641509,0.000834,76517.0,76504.0,0.03631269]
[1731013641997,0.023,76516.0,76504.0,0.03631269]
[1731013642202,0.08102755,76516.0,76504.0,0.03631269]
[1731013642364,0.05802755,76515.0,76504.0,0.03631269]
[1731013642543,0.023,76516.0,76504.0,0.03631269]
[1731013643152,0.0121335,76515.0,76504.0,0.03631269]
[1731013643354,0.0121335,76514.0,76504.0,0.03631269]
[1731013643558,0.023,76516.0,76504.0,0.03631269]
[1731013643559,0.0121335,76513.0,76504.0,0.03631269]
[1731013643789,0.0121335,76512.0,76504.0,0.03631269]
[1731013644129,0.03153869,76511.0,76504.0,0.03631269]
[1731013644316,0.03153742,76510.0,76504.0,0.03631269]
[1731013644520,0.03153742,76509.0,76505.0,0.00261378]
[1731013644741,0.01940392,76508.0,76505.0,0.00261378]
[1731013644937,0.01940392,76507.0,76505.0,0.00261378]
[1731013645142,0.01940392,76506.0,76505.0,0.00261378]
[1731013645402,0.000834,76517.0,76505.0,0.00261378]
[1731013645595,0.06911373,76534.0,76504.0,0.04131269]
[1731013645596,0.01940069,76516.0,76510.0,0.005]
[1731013645809,0.0489,76534.0,76511.0,0.13224102]
[1731013645810,0.01940069,76515.0,76511.0,0.13224102]
[1731013646101,0.01940069,76514.0,76511.0,0.13224102]
[1731013646298,0.0489,76534.0,76511.0,0.13224102]
[1731013646299,0.05803577,76532.0,76511.0,0.13224102]
[1731013646513,0.0489,76534.0,76511.0,0.13224102]
[1731013646514,0.23524602,76528.0,76511.0,0.13224102]
[1731013646676,0.023,76526.0,76512.0,0.19645979]
[1731013646893,0.05090683,76525.0,76512.0,0.19645979]
[1731013647099,0.023,76526.0,76512.0,0.19645979]
[1731013647100,0.05090683,76524.0,76512.0,0.19645979]
[1731013647296,0.03151386,76523.0,76512.0,0.19645979]
[1731013647505,0.01939326,76522.0,76512.0,0.19645979]
[1731013647660,0.0121243,76522.0,76512.0,0.19645979]
[1731013647871,0.03152399,76521.0,76512.0,0.19645979]
[1731013648120,0.023,76528.0,76512.0,0.19645979]
[1731013648327,0.023,76526.0,76512.0,0.19645979]
[1731013648532,0.03153094,76525.0,76512.0,0.19645979]
[1731013648736,0.03153094,76524.0,76512.0,0.19645979]
[1731013648953,0.03153094,76523.0,76512.0,0.19645979]
[1731013649178,0.023,76526.0,76512.0,0.19645979]
[1731013649179,0.03153094,76522.0,76512.0,0.19645979]
[1731013649407,0.023,76526.0,76512.0,0.19645979]
[1731013649408,0.03153094,76521.0,76512.0,0.19645979]
[1731013649632,0.023,76533.0,76513.0,0.0795]
[1731013649860,0.023,76531.0,76520.0,0.19645979]
[1731013650088,0.023,76531.0,76515.0,0.005]
[1731013650089,0.01940525,76530.0,76521.0,0.00261322]
[1731013650302,0.03941772,76541.0,76518.0,0.005]
[1731013650511,0.03153436,76538.0,76520.0,0.19645979]
[1731013650727,0.000741,76541.0,76520.0,0.19645979]
[1731013650728,0.03153436,76537.0,76520.0,0.19645979]
[1731013650937,0.000741,76541.0,76520.0,0.19645979]
[1731013650938,0.03153436,76536.0,76520.0,0.19645979]
[1731013651143,0.03153436,76535.0,76521.0,0.1]
[1731013651346,0.03153436,76534.0,76521.0,0.1]
[1731013651555,0.03153436,76533.0,76521.0,0.1]
[1731013651760,0.01940576,76532.0,76521.0,0.1]
[1731013651979,0.01940576,76531.0,76521.0,0.1]
[1731013652186,0.0234,76539.0,76521.0,0.1]
[1731013652384,0.023,76537.0,76521.0,0.1]
[1731013652588,0.03153009,76536.0,76521.0,0.1]
[1731013652998,0.03153009,76535.0,76521.0,0.1]
[1731013653205,0.03153009,76534.0,76521.0,0.1]
[1731013653400,0.01940313,76533.0,76521.0,0.1]
[1731013653702,0.01940313,76532.0,76521.0,0.1]
[1731013653878,0.023,76538.0,76521.0,0.1]
[1731013654103,0.023,76536.0,76521.0,0.1]
[1731013654231,0.03152982,76535.0,76521.0,0.1]
[1731013654434,0.023,76536.0,76521.0,0.1]
[1731013654435,0.03152982,76534.0,76521.0,0.1]
[1731013654677,0.023,76536.0,76521.0,0.1]
[1731013654895,0.03152698,76533.0,76521.0,0.1]
[1731013655086,0.01940122,76532.0,76521.0,0.1]
[1731013655291,0.023,76537.0,76521.0,0.1]
[1731013655524,0.023,76535.0,76521.0,0.1]
[1731013655648,0.023,76535.0,76513.0,0.1]
[1731013655649,0.023,76533.0,76513.0,0.1]
[1731013655908,0.023,76531.0,76521.0,0.1]
[1731013656272,0.023,76529.0,76521.0,0.1]
[1731013656396,0.01940603,76528.0,76521.0,0.1]
[1731013656602,0.04240603,76527.0,76521.0,0.1]
[1731013656811,0.023,76531.0,76521.0,0.1]
[1731013657021,0.023,76529.0,76521.0,0.1]
[1731013657224,0.01940891,76528.0,76521.0,0.1]
[1731013657451,0.023,76531.0,76521.0,0.10261337]
[1731013657653,0.023,76529.0,76521.0,0.10261337]
[1731013657861,0.023,76527.0,76521.0,0.10261337]
[1731013658065,0.023,76527.0,76513.0,0.1]
[1731013658332,0.06167672,76531.0,76513.0,0.1]
[1731013658768,0.023,76529.0,76513.0,0.1]
[1731013658985,0.12167672,76532.0,76513.0,0.1]
[1731013658986,0.023,76527.0,76513.0,0.1]
[1731013659209,0.01940928,76526.0,76513.0,0.1]
[1731013659439,0.01940928,76525.0,76513.0,0.1]
[1731013659863,0.06167672,76530.0,76513.0,0.1]
[1731013659989,0.023,76528.0,76513.0,0.1]
[1731013660196,0.0194098,76527.0,76514.0,0.00261338]
[1731013660399,0.06167672,76530.0,76514.0,0.00261338]
[1731013660400,0.0194098,76526.0,76514.0,0.00261338]
[1731013660611,0.03154126,76525.0,76514.0,0.00261338]
[1731013660828,0.01941032,76524.0,76513.0,0.1]
[1731013661047,0.03867672,76529.0,76513.0,0.1]
[1731013661048,0.023,76528.0,76513.0,0.101668]
[1731013661247,0.03152779,76527.0,76513.0,0.101668]
[1731013661473,0.03152779,76526.0,76513.0,0.101668]
[1731013661678,0.01940207,76525.0,76513.0,0.101668]
[1731013661835,0.01940207,76524.0,76513.0,0.101668]
[1731013662051,0.01940207,76523.0,76513.0,0.101668]
[1731013662248,0.023,76528.0,76513.0,0.101668]
[1731013662466,0.01212829,76527.0,76514.0,0.00261338]
[1731013662679,0.03153355,76526.0,76514.0,0.00261338]
[1731013662907,0.03153355,76525.0,76514.0,0.00261338]
[1731013663134,0.01940526,76524.0,76514.0,0.00261338]
[1731013663393,0.01940526,76523.0,76514.0,0.00261338]
[1731013663633,0.023,76528.0,76514.0,0.00261338]
[1731013663838,0.03153499,76527.0,76514.0,0.00261338]
[1731013664069,0.03153499,76526.0,76514.0,0.00261338]
[1731013664306,0.03153499,76525.0,76514.0,0.00261338]
[1731013664530,0.01940615,76524.0,76514.0,0.00261338]
[1731013664753,0.01940615,76523.0,76514.0,0.00261338]
[1731013664975,0.023,76528.0,76514.0,0.00261338]
[1731013665191,0.03153639,76527.0,76514.0,0.00261338]
[1731013665415,0.023,76528.0,76514.0,0.00261338]
[1731013665664,0.01212938,76526.0,76514.0,0.00261338]
[1731013665897,0.03153639,76525.0,76514.0,0.00261338]
[1731013666122,0.01940701,76524.0,76514.0,0.00261338]
[1731013666356,0.01940701,76523.0,76514.0,0.00261338]
[1731013666573,0.023,76528.0,76514.0,0.00261338]
[1731013666813,0.03153594,76527.0,76514.0,0.00261338]
[1731013667045,0.03153594,76526.0,76514.0,0.00261338]
[1731013667320,0.03153594,76525.0,76514.0,0.00261338]
[1731013667539,0.01940671,76524.0,76513.0,0.001668]
[1731013667767,0.1011,76522.0,76513.0,0.001668]
[1731013667986,0.023,76520.0,76513.0,0.001668]
[1731013668218,0.0315382,76519.0,76513.0,0.001668]
[1731013668434,0.023,76520.0,76513.0,0.001668]
[1731013668435,0.0315382,76518.0,76513.0,0.001668]
[1731013668667,0.03154021,76517.0,76513.0,0.001668]
[1731013668883,0.01940936,76516.0,76513.0,0.001668]
[1731013669098,0.03867672,76523.0,76514.0,0.00261366]
[1731013669317,0.03154008,76522.0,76516.0,0.005]
[1731013669559,0.0121308,76521.0,76516.0,0.23724102]
[1731013669775,0.03867672,76526.0,76516.0,0.23724102]
[1731013669989,0.01941114,76525.0,76516.0,0.23724102]
[1731013670205,0.01941114,76524.0,76516.0,0.23724102]
[1731013670411,0.03867672,76531.0,76516.0,0.23724102]
[1731013670626,0.0315442,76530.0,76516.0,0.23724102]
[1731013670840,0.0315442,76529.0,76518.0,0.1]
[1731013671078,0.0315442,76528.0,76518.0,0.1]
[1731013671308,0.0315442,76527.0,76518.0,0.1]
[1731013671516,0.01941182,76526.0,76518.0,0.1]
[1731013671729,0.01941182,76525.0,76518.0,0.1]
[1731013671957,0.01941182,76524.0,76518.0,0.1]
[1731013672161,0.01941182,76523.0,76518.0,0.1]
[1731013672404,0.03867672,76530.0,76518.0,0.1]
[1731013672627,0.03154814,76529.0,76518.0,0.1]
[1731013672847,0.03154814,76528.0,76518.0,0.1]
[1731013673063,0.03154814,76527.0,76518.0,0.1]
[1731013673272,0.03154814,76526.0,76518.0,0.1]
[1731013673482,0.03154814,76525.0,76518.0,0.1]
[1731013673733,0.03155339,76524.0,76518.0,0.1]
[1731013673961,0.01941424,76523.0,76518.0,0.1]
[1731013674176,0.000834,76527.0,76518.0,0.1]
[1731013674399,0.01942936,76526.0,76519.0,0.00261332]
[1731013674619,0.01942936,76525.0,76519.0,0.00261332]
[1731013674846,0.000834,76527.0,76518.0,0.105]
[1731013675079,0.01942761,76526.0,76520.0,0.1]
[1731013675286,0.000834,76527.0,76520.0,0.1]
[1731013675498,0.0194304,76526.0,76520.0,0.1]
[1731013675707,0.000834,76527.0,76520.0,0.1]
[1731013675916,0.000834,76527.0,76521.0,0.00261316]
[1731013676148,0.01943121,76526.0,76521.0,0.00261316]
[1731013676372,0.000834,76527.0,76521.0,0.00261316]
[1731013676588,0.000834,76527.0,76520.0,0.23724102]
[1731013676797,0.01943109,76526.0,76520.0,0.23724102]
[1731013677010,0.000834,76527.0,76520.0,0.23724102]
[1731013678054,0.01943052,76526.0,76520.0,0.23724102]
[1731013678265,0.000834,76527.0,76526.0,0.1]
[1731013679555,0.000834,76527.0,76522.0,0.1]
[1731013683607,0.000834,76527.0,76521.0,0.1]
[1731013685782,0.000834,76527.0,76518.0,0.005]
[1731013686001,0.000834,76527.0,76520.0,0.1]
[1731013686510,0.000834,76527.0,76522.0,0.001668]
[1731013692179,0.023,76525.0,76522.0,0.001668]
[1731013692389,0.023,76523.0,76522.0,0.001668]
[1731013692602,0.1852299,76523.0,76522.0,0.001668]
[1731013692869,0.2046316,76523.0,76522.0,0.001668]
[1731013693074,0.40318582,76523.0,76522.0,0.001668]
[1731013693549,0.40318582,76523.0,76504.0,0.001668]
[1731013693550,0.1537,76520.0,76510.0,0.19645979]
[1731013693756,0.34502193,76519.0,76518.0,0.19645979]
[1731013693975,0.023,76518.0,76510.0,0.19645979]
[1731013694158,0.023,76515.0,76514.0,0.03618237]
[1731013694446,0.20617262,76515.0,76514.0,0.001668]
[1731013694906,0.21432319,76515.0,76514.0,0.001668]
[1731013695409,0.25312076,76515.0,76514.0,0.001668]
[1731013695625,0.24497019,76515.0,76514.0,0.001668]
[1731013696077,0.20617262,76515.0,76514.0,0.001668]
[1731013696306,0.28667262,76515.0,76514.0,0.001668]
[1731013696551,0.29394029,76515.0,76514.0,0.001668]
[1731013696782,0.32541631,76515.0,76514.0,0.001668]
[1731013697007,0.33356691,76515.0,76514.0,0.001668]
[1731013697234,0.29476934,76515.0,76514.0,0.001668]
[1731013697446,0.33231874,76515.0,76514.0,0.001668]
[1731013697661,1.00350219,76515.0,76514.0,0.001668]
[1731013697924,1.0116528,76515.0,76514.0,0.001668]
[1731013699288,1.05039628,76515.0,76514.0,0.001668]
[1731013700401,1.0116528,76515.0,76514.0,0.001668]
[1731013701035,1.01980367,76515.0,76514.0,0.001668]
[1731013701904,1.01980367,76515.0,76504.0,0.001668]
[1731013701905,0.023,76514.0,76504.0,0.001668]
[1731013702114,0.002,76510.0,76504.0,0.001668]
[1731013702334,0.24484905,76509.0,76504.0,0.001668]
[1731013702554,0.023,76507.0,76504.0,0.001668]
[1731013702780,0.023,76505.0,76504.0,0.03639214]
[1731013703076,0.20611874,76505.0,76504.0,0.001668]
[1731013703269,0.20611874,76505.0,76491.0,0.19812779]
[1731013703270,0.25561874,76505.0,76492.0,0.1]
[1731013703489,0.023,76503.0,76492.0,0.1]
[1731013703703,0.023,76501.0,76492.0,0.1]
[1731013703913,0.023,76499.0,76492.0,0.1]
[1731013704121,0.023,76497.0,76492.0,0.1]
[1731013704342,0.023,76495.0,76492.0,0.1]
[1731013704780,0.01206789,76494.0,76492.0,0.1]
[1731013704999,0.03506789,76493.0,76492.0,0.1]
[1731013705679,0.67118345,76503.0,76491.0,0.001668]
[1731013705904,0.023,76501.0,76491.0,0.001668]
[1731013706124,0.01206572,76500.0,76491.0,0.0042824]
[1731013706345,0.01206572,76499.0,76493.0,0.1]
[1731013706593,0.03506572,76498.0,76493.0,0.1]
[1731013706808,0.023,76498.0,76493.0,0.1]
[1731013707041,0.023,76502.0,76493.0,0.1]
[1731013707257,0.023,76500.0,76493.0,0.1]
[1731013707484,0.01206417,76499.0,76491.0,0.001668]
[1731013707741,0.01206417,76498.0,76491.0,0.0042824]
[1731013707959,0.023,76497.0,76493.0,0.1]
[1731013708209,0.023,76502.0,76493.0,0.1]
[1731013708418,0.023,76500.0,76493.0,0.1]
[1731013708662,0.01206371,76499.0,76494.0,0.19907419]
[1731013708872,0.67118345,76503.0,76495.0,0.1]
[1731013709094,0.01206649,76502.0,76496.0,0.00261421]
[1731013709303,0.67118345,76503.0,76496.0,0.00261421]
[1731013709562,0.01206764,76502.0,76496.0,0.00261421]
[1731013709781,0.03862403,76515.0,76496.0,0.00261421]